fUSD/lending_fUSD_20260607
["ID","MTS","AMOUNT","RATE_DAILY","PERIOD"]
[424316698,1780767039000,-1244.0,0.00010551,2]
[424316688,1780767039000,-1098.0,0.00010551,2]
[424316702,1780767039000,-1244.0,0.00010551,2]
[424316662,1780767039000,-500.0,0.00010551,2]
[424316700,1780767039000,-1098.0,0.00010551,2]
[424316707,1780767039000,-1098.0,0.00010551,2]
[424316717,1780767039000,-515.0,0.00010551,2]
[424316719,1780767039000,-1244.0,0.00010551,2]
[424316725,1780767039000,-1244.0,0.00010551,2]
[424316709,1780767039000,-1244.0,0.00010551,2]
[424316721,1780767039000,-515.0,0.00010551,2]
[424316723,1780767039000,-1244.0,0.00010551,2]
[424316711,1780767039000,-1098.0,0.00010551,2]
[424316715,1780767039000,-1098.0,0.00010551,2]
[424316713,1780767039000,-1244.0,0.00010551,2]
[424316729,1780767039000,-1098.0,0.00010551,2]
[424316731,1780767039000,-515.0,0.00010551,2]
[424316704,1780767039000,-515.0,0.00010551,2]
[424316658,1780767039000,-500.0,0.00010551,2]
[424316605,1780767039000,-565.0,0.00010551,2]
[424316659,1780767039000,-500.0,0.00010551,2]
[424316674,1780767039000,-500.0,0.00010551,2]
[424316616,1780767039000,-565.0,0.00010551,2]
[424316613,1780767039000,-565.0,0.00010551,2]
[424316620,1780767039000,-565.0,0.00010551,2]
[424316622,1780767039000,-1098.0,0.00010551,2]
[424316618,1780767039000,-565.0,0.00010551,2]
[424316624,1780767039000,-500.0,0.00010551,2]
[424316626,1780767039000,-500.0,0.00010551,2]
[424316632,1780767039000,-1098.0,0.00010551,2]
[424316645,1780767039000,-565.0,0.00010551,2]
[424316733,1780767039000,-1244.0,0.00010551,2]
[424316641,1780767039000,-500.0,0.00010551,2]
[424316635,1780767039000,-500.0,0.00010551,2]
[424316628,1780767039000,-1098.0,0.00010551,2]
[424316639,1780767039000,-1098.0,0.00010551,2]
[424316630,1780767039000,-500.0,0.00010551,2]
[424316671,1780767039000,-500.0,0.00010551,2]
[424316666,1780767039000,-500.0,0.00010551,2]
[424316668,1780767039000,-500.0,0.00010551,2]
[424316672,1780767039000,-359.92465112,0.00010551,2]
[424316664,1780767039000,-500.0,0.00010551,2]
[424316655,1780767039000,-1098.0,0.00010551,2]
[424316651,1780767039000,-1098.0,0.00010551,2]
[424316647,1780767039000,-500.0,0.00010551,2]
[424316653,1780767039000,-500.0,0.00010551,2]
[424316637,1780767039000,-500.0,0.00010551,2]
[424316649,1780767039000,-500.0,0.00010551,2]
[424316821,1780767040000,-500.0,0.00010551,2]
[424316824,1780767040000,-500.0,0.00010551,2]
[424316834,1780767040000,-500.0,0.00010551,2]
[424316832,1780767040000,-500.0,0.00010551,2]
[424316819,1780767040000,-1104.0953843,0.00010551,2]
[424316809,1780767040000,-1244.0,0.00010551,2]
[424316815,1780767040000,-1244.0,0.00010551,2]
[424316813,1780767040000,-515.0,0.00010551,2]
[424316811,1780767040000,-1098.0,0.00010551,2]
[424316807,1780767040000,-515.0,0.00010551,2]
[424316803,1780767040000,-1244.0,0.00010551,2]
[424316830,1780767040000,-1252.05631674,0.00010551,2]
[424316817,1780767040000,-515.0,0.00010551,2]
[424316826,1780767040000,-500.0,0.00010551,2]
[424316857,1780767040000,-500.0,0.00010551,2]
[424316836,1780767040000,-500.0,0.00010551,2]
[424316838,1780767040000,-500.0,0.00010551,2]
[424316840,1780767040000,-500.0,0.00010551,2]
[424316852,1780767040000,-500.0,0.00010551,2]
[424316842,1780767040000,-536.50885793,0.00010551,2]
[424316844,1780767040000,-224.92811501,0.00010551,2]
[424316854,1780767040000,-500.0,0.00010551,2]
[424316855,1780767040000,-500.0,0.00010551,2]
[424316846,1780767040000,-150.0,0.00010551,2]
[424316850,1780767040000,-500.0,0.00010551,2]
[424316862,1780767040000,-500.0,0.00010551,2]
[424316793,1780767040000,-515.0,0.00010551,2]
[424316859,1780767040000,-500.0,0.00010551,2]
[424316848,1780767040000,-197.22054503,0.00010551,2]
[424316828,1780767040000,-500.0,0.00010551,2]
[424316805,1780767040000,-1098.0,0.00010551,2]
[424316762,1780767040000,-1244.0,0.00010551,2]
[424316801,1780767040000,-515.0,0.00010551,2]
[424316746,1780767040000,-515.0,0.00010551,2]
[424316748,1780767040000,-1244.0,0.00010551,2]
[424316735,1780767040000,-515.0,0.00010551,2]
[424316864,1780767040000,-500.0,0.00010551,2]
[424316743,1780767040000,-1244.0,0.00010551,2]
[424316741,1780767040000,-515.0,0.00010551,2]
[424316737,1780767040000,-1244.0,0.00010551,2]
[424316739,1780767040000,-565.0,0.00010551,2]
[424316752,1780767040000,-1244.0,0.00010551,2]
[424316754,1780767040000,-1098.0,0.00010551,2]
[424316756,1780767040000,-515.0,0.00010551,2]
[424316758,1780767040000,-1244.0,0.00010551,2]
[424316760,1780767040000,-515.0,0.00010551,2]
[424316770,1780767040000,-1244.0,0.00010551,2]
[424316772,1780767040000,-515.0,0.00010551,2]
[424316775,1780767040000,-515.0,0.00010551,2]
[424316768,1780767040000,-515.0,0.00010551,2]
[424316776,1780767040000,-1098.0,0.00010551,2]
[424316764,1780767040000,-515.0,0.00010551,2]
[424316783,1780767040000,-515.0,0.00010551,2]
[424316785,1780767040000,-565.0,0.00010551,2]
[424316781,1780767040000,-1244.0,0.00010551,2]
[424316779,1780767040000,-515.0,0.00010551,2]
[424316766,1780767040000,-515.0,0.00010551,2]
[424316787,1780767040000,-515.0,0.00010551,2]
[424316789,1780767040000,-1098.0,0.00010551,2]
[424316799,1780767040000,-587.36410633,0.00010551,2]
[424316791,1780767040000,-1244.0,0.00010551,2]
[424316795,1780767040000,-1244.0,0.00010551,2]
[424316797,1780767040000,-1098.0,0.00010551,2]
[424316750,1780767040000,-515.0,0.00010551,2]
[424316866,1780767040000,-396.32957951,0.00010551,2]
[424316883,1780767040000,-500.0,0.00010825,2]
[424316902,1780767040000,-150.0,0.00010959,2]
[424316916,1780767040000,-2133.84139902,0.000114,2]
[424316912,1780767040000,-176.80554039,0.00011099,2]
[424316914,1780767040000,-3511.90162571,0.000114,2]
[424316930,1780767040000,-169.65,0.00012041,2]
[424316932,1780767040000,-169.65,0.00012041,2]
[424316934,1780767040000,-196.93,0.00012329,2]
[424316926,1780767040000,-500.0,0.00011836,2]
[424316918,1780767040000,-3284.08,0.00011507,2]
[424316922,1780767040000,-500.0,0.00011699,2]
[424316920,1780767040000,-2000.0,0.00011668,2]
[424316924,1780767040000,-28942.17249314,0.00011789,2]
[424316928,1780767040000,-168.56,0.00011941,2]
[424316937,1780767040000,-154.52,0.00012329,2]
[424316936,1780767040000,-196.93,0.00012329,2]
[424316939,1780767040000,-151.0,0.00012439,2]
[424316942,1780767040000,-156.587,0.00012439,2]
[424316943,1780767040000,-200.08318283,0.00012439,2]
[424316949,1780767040000,-8215.0,0.00012547,5]
[424316957,1780767040000,-166.66,0.00012853,2]
[424316959,1780767040000,-1200.0,0.000129,4]
[424316955,1780767040000,-2000.0,0.00012835,2]
[424316953,1780767040000,-199.5,0.00012741,2]
[424316947,1780767040000,-8223.0,0.00012547,5]
[424316945,1780767040000,-166.66,0.00012442,2]
[424316961,1780767040000,-168.56,0.00012936,2]
[424316885,1780767040000,-500.0,0.00010825,2]
[424316965,1780767040000,-167.301535,0.00012943,2]
[424316963,1780767040000,-271.103709,0.00012943,2]
[424316910,1780767040000,-28942.17249314,0.00011099,2]
[424316909,1780767040000,-28942.17249314,0.00011099,2]
[424316951,1780767040000,-28942.17249314,0.00012567,2]
[424316906,1780767040000,-28942.17249315,0.00011099,2]
[424316908,1780767040000,-28942.17249314,0.00011099,2]
[424316887,1780767040000,-500.0,0.00010825,2]
[424316874,1780767040000,-500.0,0.00010822,2]
[424316882,1780767040000,-500.0,0.00010825,2]
[424316884,1780767040000,-500.0,0.00010825,2]
[424316868,1780767040000,-340.0,0.00010568,2]
[424316886,1780767040000,-500.0,0.00010825,2]
[424316880,1780767040000,-287.44605956,0.00010825,2]
[424316878,1780767040000,-150.0,0.00010825,2]
[424316876,1780767040000,-158.06927802,0.00010825,2]
[424316870,1780767040000,-468951.26644069,0.000107,2]
[424316889,1780767040000,-500.0,0.00010825,2]
[424316899,1780767040000,-500.0,0.00010825,2]
[424316900,1780767040000,-278.23959598,0.00010825,2]
[424316872,1780767040000,-1451.41,0.00010779,2]
[424316888,1780767040000,-500.0,0.00010825,2]
[424316890,1780767040000,-500.0,0.00010825,2]
[424316907,1780767040000,-28942.17249314,0.00011099,2]
[424316903,1780767040000,-150.0,0.00010959,2]
[424316901,1780767040000,-168.56,0.00010946,2]
[424316897,1780767040000,-500.0,0.00010825,2]
[424316898,1780767040000,-500.0,0.00010825,2]
[424316905,1780767040000,-539.0,0.00011096,2]
[424316893,1780767040000,-150.0,0.00010825,2]
[424316891,1780767040000,-183.93938706,0.00010825,2]
[424316894,1780767040000,-166.00519298,0.00010825,2]
[424316904,1780767040000,-1451.41,0.0001103,2]
[424316895,1780767040000,-500.0,0.00010825,2]
[424316896,1780767040000,-278.44102927,0.00010825,2]
[424316892,1780767040000,-218.73222612,0.00010825,2]
[424317042,1780767041000,-150.0,0.00013553,2]
[424317059,1780767041000,-150.0,0.00013605,2]
[424317038,1780767041000,-150.0,0.00013548,2]
[424317051,1780767041000,-150.0,0.00013578,2]
[424317046,1780767041000,-340.65424855,0.00013563,2]
[424317049,1780767041000,-150.0,0.00013573,2]
[424317053,1780767041000,-340.65424855,0.00013578,2]
[424317055,1780767041000,-150.0,0.00013581,2]
[424317057,1780767041000,-340.65424855,0.00013594,2]
[424317063,1780767041000,-340.65424855,0.00013609,2]
[424317061,1780767041000,-150.0,0.00013608,2]
[424317040,1780767041000,-340.65424855,0.00013548,2]
[424317068,1780767041000,-150.0,0.00013618,2]
[424317066,1780767041000,-150.0,0.00013616,2]
[424317072,1780767041000,-150.0,0.00013628,2]
[424317076,1780767041000,-150.0,0.00013638,2]
[424317078,1780767041000,-340.65424855,0.00013639,2]
[424317074,1780767041000,-250.0,0.00013638,2]
[424317081,1780767041000,-150.0,0.00013652,2]
[424317080,1780767041000,-500.0,0.00013644,2]
[424317083,1780767041000,-150.0,0.00013654,2]
[424317085,1780767041000,-340.65424855,0.00013654,2]
[424317095,1780767041000,-166.66,0.00013675,2]
[424317097,1780767041000,-150.0,0.00013675,2]
[424317034,1780767041000,-340.65424855,0.00013533,2]
[424317070,1780767041000,-340.65424855,0.00013624,2]
[424317036,1780767041000,-150.0,0.00013535,2]
[424316997,1780767041000,-28942.17249314,0.00013344,2]
[424317032,1780767041000,-150.0,0.0001353,2]
[424316967,1780767041000,-189.96197,0.00013007,2]
[424316969,1780767041000,-1068.51941723,0.0001305,2]
[424316979,1780767041000,-11294.0556973,0.00013207,2]
[424316971,1780767041000,-150.64131538,0.00013076,2]
[424316973,1780767041000,-1548.0,0.00013146,2]
[424316977,1780767041000,-67074.3370671,0.00013207,2]
[424317101,1780767041000,-340.65424855,0.00013684,2]
[424317001,1780767041000,-1500.0,0.00013459,2]
[424316999,1780767041000,-1030.0,0.00013459,2]
[424317005,1780767041000,-150.0,0.00013488,2]
[424317003,1780767041000,-224.38985235,0.00013488,2]
[424316995,1780767041000,-333.827949,0.0001331,2]
[424317044,1780767041000,-150.0,0.00013558,2]
[424316993,1780767041000,-166.66,0.00013264,2]
[424317009,1780767041000,-150.0,0.00013488,2]
[424317011,1780767041000,-150.0,0.00013488,2]
[424317013,1780767041000,-150.0,0.00013488,2]
[424317014,1780767041000,-150.0,0.00013488,2]
[424317016,1780767041000,-150.0,0.00013488,2]
[424317018,1780767041000,-340.65424855,0.00013488,2]
[424317020,1780767041000,-1000.0,0.000135,2]
[424317024,1780767041000,-150.0,0.00013511,2]
[424317028,1780767041000,-150.0,0.00013518,2]
[424317030,1780767041000,-340.65424855,0.00013518,2]
[424317022,1780767041000,-340.65424855,0.00013503,2]
[424317026,1780767041000,-621.98999604,0.00013514,2]
[424317007,1780767041000,-150.0,0.00013488,2]
[424317099,1780767041000,-150.0,0.00013683,2]
[424316975,1780767041000,-372.9920325,0.00013207,2]
[424317089,1780767041000,-150.0,0.00013668,2]
[424317157,1780767041000,-731.42,0.00013698,2]
[424317147,1780767041000,-731.42,0.00013698,2]
[424317161,1780767041000,-500.0,0.00013698,2]
[424317165,1780767041000,-500.0,0.00013698,2]
[424317167,1780767041000,-500.0,0.00013698,2]
[424317169,1780767041000,-567.64863004,0.00013698,2]
[424317176,1780767041000,-279.66288883,0.00013698,2]
[424317174,1780767041000,-500.0,0.00013698,2]
[424317171,1780767041000,-500.0,0.00013698,2]
[424317178,1780767041000,-500.0,0.00013698,2]
[424317173,1780767041000,-500.0,0.00013698,2]
[424317180,1780767041000,-500.0,0.00013698,2]
[424317146,1780767041000,-731.42,0.00013698,2]
[424317182,1780767041000,-500.0,0.00013698,2]
[424317188,1780767041000,-500.0,0.00013698,2]
[424317190,1780767041000,-550.42035048,0.00013698,2]
[424317194,1780767041000,-500.0,0.00013698,2]
[424317196,1780767041000,-500.0,0.00013698,2]
[424317203,1780767041000,-2695.93,0.00013698,2]
[424317200,1780767041000,-401.20871667,0.00013698,2]
[424317198,1780767041000,-500.0,0.00013698,2]
[424317192,1780767041000,-500.0,0.00013698,2]
[424317206,1780767041000,-2695.93,0.00013698,2]
[424317202,1780767041000,-2695.93,0.00013698,2]
[424317208,1780767041000,-2695.93,0.00013698,2]
[424317091,1780767041000,-340.65424855,0.00013669,2]
[424317184,1780767041000,-500.0,0.00013698,2]
[424317144,1780767041000,-731.42,0.00013698,2]
[424317186,1780767041000,-500.0,0.00013698,2]
[424317163,1780767041000,-500.0,0.00013698,2]
[424317159,1780767041000,-305.99577316,0.00013698,2]
[424317087,1780767041000,-150.0,0.00013659,2]
[424317093,1780767041000,-1045.35211327,0.0001367,2]
[424317103,1780767041000,-150.0,0.00013697,2]
[424317105,1780767041000,-500.0,0.00013698,2]
[424317107,1780767041000,-500.0,0.00013698,2]
[424317108,1780767041000,-500.0,0.00013698,2]
[424317110,1780767041000,-500.0,0.00013698,2]
[424317122,1780767041000,-500.0,0.00013698,2]
[424317124,1780767041000,-500.0,0.00013698,2]
[424317128,1780767041000,-500.0,0.00013698,2]
[424317114,1780767041000,-500.0,0.00013698,2]
[424317126,1780767041000,-500.0,0.00013698,2]
[424317116,1780767041000,-500.0,0.00013698,2]
[424317112,1780767041000,-500.0,0.00013698,2]
[424317120,1780767041000,-500.0,0.00013698,2]
[424317151,1780767041000,-731.42,0.00013698,2]
[424317153,1780767041000,-731.42,0.00013698,2]
[424317142,1780767041000,-731.42,0.00013698,2]
[424317149,1780767041000,-731.42,0.00013698,2]
[424317140,1780767041000,-731.42,0.00013698,2]
[424317138,1780767041000,-731.42,0.00013698,2]
[424317155,1780767041000,-731.42,0.00013698,2]
[424317136,1780767041000,-731.42,0.00013698,2]
[424317118,1780767041000,-500.0,0.00013698,2]
[424317132,1780767041000,-731.42,0.00013698,2]
[424317130,1780767041000,-502.77238855,0.00013698,2]
[424317134,1780767041000,-731.42,0.00013698,2]
[424317265,1780767042000,-4130.61,0.00013698,2]
[424317268,1780767042000,-4130.61,0.00013698,2]
[424317264,1780767042000,-4130.61,0.00013698,2]
[424317262,1780767042000,-500.0,0.00013698,2]
[424317260,1780767042000,-500.0,0.00013698,2]
[424317259,1780767042000,-500.0,0.00013698,2]
[424317258,1780767042000,-500.0,0.00013698,2]
[424317257,1780767042000,-500.0,0.00013698,2]
[424317252,1780767042000,-500.0,0.00013698,2]
[424317255,1780767042000,-500.0,0.00013698,2]
[424317254,1780767042000,-500.0,0.00013698,2]
[424317253,1780767042000,-500.0,0.00013698,2]
[424317256,1780767042000,-500.0,0.00013698,2]
[424317269,1780767042000,-4130.61,0.00013698,2]
[424317279,1780767042000,-500.0,0.00013698,2]
[424317275,1780767042000,-4130.61,0.00013698,2]
[424317266,1780767042000,-4130.61,0.00013698,2]
[424317270,1780767042000,-4130.61,0.00013698,2]
[424317273,1780767042000,-4130.61,0.00013698,2]
[424317271,1780767042000,-4130.61,0.00013698,2]
[424317267,1780767042000,-4130.61,0.00013698,2]
[424317274,1780767042000,-4130.61,0.00013698,2]
[424317272,1780767042000,-4130.61,0.00013698,2]
[424317278,1780767042000,-500.0,0.00013698,2]
[424317290,1780767042000,-500.0,0.00013698,2]
[424317291,1780767042000,-500.0,0.00013698,2]
[424317289,1780767042000,-500.0,0.00013698,2]
[424317288,1780767042000,-500.0,0.00013698,2]
[424317261,1780767042000,-500.0,0.00013698,2]
[424317276,1780767042000,-4130.61,0.00013698,2]
[424317263,1780767042000,-500.0,0.00013698,2]
[424317212,1780767042000,-2695.93,0.00013698,2]
[424317251,1780767042000,-500.0,0.00013698,2]
[424317210,1780767042000,-2695.93,0.00013698,2]
[424317214,1780767042000,-2695.93,0.00013698,2]
[424317277,1780767042000,-500.0,0.00013698,2]
[424317230,1780767042000,-500.0,0.00013698,2]
[424317229,1780767042000,-2695.93,0.00013698,2]
[424317231,1780767042000,-2695.93,0.00013698,2]
[424317234,1780767042000,-502.82436943,0.00013698,2]
[424317216,1780767042000,-2695.93,0.00013698,2]
[424317232,1780767042000,-500.0,0.00013698,2]
[424317233,1780767042000,-500.0,0.00013698,2]
[424317235,1780767042000,-500.0,0.00013698,2]
[424317218,1780767042000,-2695.93,0.00013698,2]
[424317222,1780767042000,-2695.93,0.00013698,2]
[424317220,1780767042000,-2695.93,0.00013698,2]
[424317224,1780767042000,-500.0,0.00013698,2]
[424317226,1780767042000,-500.0,0.00013698,2]
[424317238,1780767042000,-500.0,0.00013698,2]
[424317236,1780767042000,-500.0,0.00013698,2]
[424317237,1780767042000,-500.0,0.00013698,2]
[424317243,1780767042000,-500.0,0.00013698,2]
[424317247,1780767042000,-500.0,0.00013698,2]
[424317240,1780767042000,-500.0,0.00013698,2]
[424317248,1780767042000,-500.0,0.00013698,2]
[424317244,1780767042000,-500.0,0.00013698,2]
[424317245,1780767042000,-500.0,0.00013698,2]
[424317249,1780767042000,-161.67093948,0.00013698,2]
[424317241,1780767042000,-500.0,0.00013698,2]
[424317246,1780767042000,-500.0,0.00013698,2]
[424317239,1780767042000,-500.0,0.00013698,2]
[424317250,1780767042000,-500.0,0.00013698,2]
[424317282,1780767042000,-500.0,0.00013698,2]
[424317228,1780767042000,-522.71612646,0.00013698,2]
[424317285,1780767042000,-323.0,0.00013698,2]
[424317333,1780767042000,-500.0,0.00013698,2]
[424317334,1780767042000,-500.0,0.00013698,2]
[424317328,1780767042000,-500.0,0.00013698,2]
[424317331,1780767042000,-500.0,0.00013698,2]
[424317325,1780767042000,-457.12873569,0.00013698,2]
[424317324,1780767042000,-500.0,0.00013698,2]
[424317329,1780767042000,-500.0,0.00013698,2]
[424317330,1780767042000,-500.0,0.00013698,2]
[424317332,1780767042000,-500.0,0.00013698,2]
[424317326,1780767042000,-500.0,0.00013698,2]
[424317336,1780767042000,-500.0,0.00013698,2]
[424317346,1780767042000,-500.0,0.00013698,2]
[424317347,1780767042000,-500.0,0.00013698,2]
[424317335,1780767042000,-500.0,0.00013698,2]
[424317323,1780767042000,-500.0,0.00013698,2]
[424317337,1780767042000,-500.0,0.00013698,2]
[424317338,1780767042000,-500.0,0.00013698,2]
[424317339,1780767042000,-500.0,0.00013698,2]
[424317344,1780767042000,-500.0,0.00013698,2]
[424317341,1780767042000,-500.0,0.00013698,2]
[424317342,1780767042000,-500.0,0.00013698,2]
[424317343,1780767042000,-500.0,0.00013698,2]
[424317345,1780767042000,-500.0,0.00013698,2]
[424317354,1780767042000,-500.0,0.00013698,2]
[424317348,1780767042000,-500.0,0.00013698,2]
[424317349,1780767042000,-500.0,0.00013698,2]
[424317350,1780767042000,-500.0,0.00013698,2]
[424317351,1780767042000,-500.0,0.00013698,2]
[424317353,1780767042000,-500.0,0.00013698,2]
[424317280,1780767042000,-500.0,0.00013698,2]
[424317340,1780767042000,-500.0,0.00013698,2]
[424317327,1780767042000,-502.60698741,0.00013698,2]
[424317352,1780767042000,-500.0,0.00013698,2]
[424317314,1780767042000,-500.0,0.00013698,2]
[424317322,1780767042000,-332.46,0.00013698,2]
[424317284,1780767042000,-500.0,0.00013698,2]
[424317287,1780767042000,-500.0,0.00013698,2]
[424317281,1780767042000,-500.0,0.00013698,2]
[424317286,1780767042000,-500.0,0.00013698,2]
[424317292,1780767042000,-500.0,0.00013698,2]
[424317294,1780767042000,-500.0,0.00013698,2]
[424317299,1780767042000,-500.0,0.00013698,2]
[424317302,1780767042000,-500.0,0.00013698,2]
[424317293,1780767042000,-500.0,0.00013698,2]
[424317300,1780767042000,-500.0,0.00013698,2]
[424317295,1780767042000,-500.0,0.00013698,2]
[424317304,1780767042000,-500.0,0.00013698,2]
[424317303,1780767042000,-500.0,0.00013698,2]
[424317297,1780767042000,-500.0,0.00013698,2]
[424317283,1780767042000,-500.0,0.00013698,2]
[424317306,1780767042000,-500.0,0.00013698,2]
[424317301,1780767042000,-500.0,0.00013698,2]
[424317311,1780767042000,-500.0,0.00013698,2]
[424317312,1780767042000,-500.0,0.00013698,2]
[424317317,1780767042000,-509.23,0.00013698,2]
[424317313,1780767042000,-500.0,0.00013698,2]
[424317315,1780767042000,-500.0,0.00013698,2]
[424317316,1780767042000,-500.0,0.00013698,2]
[424317321,1780767042000,-500.0,0.00013698,2]
[424317309,1780767042000,-500.0,0.00013698,2]
[424317318,1780767042000,-500.0,0.00013698,2]
[424317310,1780767042000,-500.0,0.00013698,2]
[424317308,1780767042000,-500.0,0.00013698,2]
[424317319,1780767042000,-500.0,0.00013698,2]
[424317320,1780767042000,-500.0,0.00013698,2]
[424317385,1780767043000,-227.18936855,0.00013699,10]
[424317391,1780767043000,-1828.0,0.00013699,2]
[424317383,1780767043000,-506.55,0.00013699,2]
[424317388,1780767043000,-282.28619146,0.00013699,10]
[424317399,1780767043000,-1828.0,0.00013699,2]
[424317389,1780767043000,-574.94720013,0.00013699,2]
[424317387,1780767043000,-227.18936854,0.00013699,10]
[424317392,1780767043000,-1828.0,0.00013699,2]
[424317390,1780767043000,-1828.0,0.00013699,2]
[424317394,1780767043000,-1828.0,0.00013699,2]
[424317395,1780767043000,-1828.0,0.00013699,2]
[424317398,1780767043000,-1828.0,0.00013699,2]
[424317407,1780767043000,-1828.0,0.00013699,2]
[424317397,1780767043000,-1828.0,0.00013699,2]
[424317393,1780767043000,-1828.0,0.00013699,2]
[424317400,1780767043000,-1828.0,0.00013699,2]
[424317402,1780767043000,-1828.0,0.00013699,2]
[424317412,1780767043000,-1828.0,0.00013699,2]
[424317413,1780767043000,-1835.71235742,0.00013699,2]
[424317405,1780767043000,-1828.0,0.00013699,2]
[424317406,1780767043000,-1828.0,0.00013699,2]
[424317404,1780767043000,-1828.0,0.00013699,2]
[424317401,1780767043000,-1828.0,0.00013699,2]
[424317411,1780767043000,-1828.0,0.00013699,2]
[424317380,1780767043000,-166.66,0.00013699,2]
[424317396,1780767043000,-1828.0,0.00013699,2]
[424317382,1780767043000,-3923.55,0.00013699,2]
[424317366,1780767043000,-500.0,0.00013698,2]
[424317381,1780767043000,-2500.0,0.00013699,2]
[424317409,1780767043000,-1828.0,0.00013699,2]
[424317356,1780767043000,-500.0,0.00013698,2]
[424317358,1780767043000,-500.0,0.00013698,2]
[424317359,1780767043000,-500.0,0.00013698,2]
[424317355,1780767043000,-500.0,0.00013698,2]
[424317357,1780767043000,-500.0,0.00013698,2]
[424317371,1780767043000,-500.0,0.00013698,2]
[424317361,1780767043000,-500.0,0.00013698,2]
[424317360,1780767043000,-500.0,0.00013698,2]
[424317369,1780767043000,-500.0,0.00013698,2]
[424317370,1780767043000,-500.0,0.00013698,2]
[424317365,1780767043000,-500.0,0.00013698,2]
[424317379,1780767043000,-200.0,0.00013699,2]
[424317367,1780767043000,-500.0,0.00013698,2]
[424317368,1780767043000,-500.0,0.00013698,2]
[424317364,1780767043000,-500.0,0.00013698,2]
[424317363,1780767043000,-500.0,0.00013698,2]
[424317362,1780767043000,-500.0,0.00013698,2]
[424317373,1780767043000,-500.0,0.00013698,2]
[424317375,1780767043000,-500.0,0.00013698,2]
[424317376,1780767043000,-563.52,0.00013698,2]
[424317377,1780767043000,-563.52,0.00013698,2]
[424317378,1780767043000,-150.0,0.00013698,2]
[424317374,1780767043000,-500.0,0.00013698,2]
[424317386,1780767043000,-227.18936855,0.00013699,10]
[424317384,1780767043000,-506.68,0.00013699,2]
[424317372,1780767043000,-500.0,0.00013698,2]
[424317410,1780767043000,-1828.0,0.00013699,2]
[424317414,1780767043000,-340.65424855,0.000137,2]
[424317403,1780767043000,-1828.0,0.00013699,2]
[424317443,1780767043000,-150.0,0.00013821,2]
[424317445,1780767043000,-150.0,0.0001383,2]
[424317449,1780767043000,-150.0,0.00013847,2]
[424317450,1780767043000,-340.65424855,0.00013851,2]
[424317447,1780767043000,-340.65424855,0.00013836,2]
[424317446,1780767043000,-166.66,0.00013836,2]
[424317448,1780767043000,-150.0,0.00013839,2]
[424317453,1780767043000,-150.0,0.00013873,2]
[424317462,1780767043000,-150.0,0.00013916,2]
[424317452,1780767043000,-340.65424855,0.00013866,2]
[424317454,1780767043000,-150.0,0.00013877,2]
[424317461,1780767043000,-340.65424855,0.00013912,2]
[424317441,1780767043000,-150.0,0.00013815,2]
[424317458,1780767043000,-340.65424855,0.00013896,2]
[424317460,1780767043000,-150.0,0.00013909,2]
[424317459,1780767043000,-150.0,0.00013907,2]